fUST/lending_fUST_20260123
["ID","MTS","AMOUNT","RATE_DAILY","PERIOD"]
[403049765,1769099438049,-969.5,0.00020658,10]
[403049766,1769099438058,-10000.0,0.00020679,7]
[403049767,1769099438068,-10000.0,0.00020679,7]
[403049768,1769099438077,-10000.0,0.00020679,7]
[403049769,1769099438087,-10000.0,0.00020679,7]
[403049770,1769099438096,-10000.0,0.00020679,7]
[403049771,1769099438106,-10000.0,0.00020679,7]
[403049772,1769099438115,-6329.0,0.00020679,7]
[403049773,1769099438125,-161.0,0.00020822,3]
[403049774,1769099438135,-1000.0,0.00021,2]
[403049775,1769099438144,-4000.0,0.00021,2]
[403049776,1769099438156,-2000.0,0.00021,7]
[403049777,1769099438168,-184.31641531,0.00021265,2]
[403049778,1769099438178,-1368.0,0.0002134,2]
[403049779,1769099438188,-417.0,0.0002134,2]
[403049780,1769099438198,-202.667,0.0002134,2]
[403049781,1769099438207,-2000.0,0.000215,7]
[403049782,1769099438217,-793.0,0.00021509,2]
[403049783,1769099438226,-150.0,0.00021918,2]
[403049784,1769099438236,-1100.0,0.00022,2]
[403049785,1769099438246,-167.0,0.00022,2]
[403049786,1769099438255,-116677.25806764,0.00022,2]
[403049787,1769099438264,-1023.78521775,0.00022,2]
[403049788,1769099438274,-2000.0,0.00022,7]
[403049789,1769099438284,-11799.72939376,0.00022016,2]
[403049790,1769099438293,-180.0,0.00022363,7]
[403049791,1769099438303,-150.0,0.00022363,7]
[403049792,1769099438312,-262.48750524,0.00022381,2]
[403049793,1769099438322,-4078.71,0.00022465,4]
[403049794,1769099438331,-300.0,0.00022466,2]
[403049795,1769099438341,-859.2,0.000225,7]
[403049796,1769099438350,-2000.0,0.000225,7]
[403049797,1769099438360,-1489.08,0.000227,2]
[403049798,1769099438369,-7563.76,0.000227,2]
[403049799,1769099438379,-461.67526834,0.00022727,2]
[403049800,1769099438388,-557.5788265,0.00022727,2]
[403049801,1769099438398,-150.0,0.00022778,2]
[403049802,1769099438407,-1021.0,0.00023,2]
[403049803,1769099438660,-2000.0,0.00023,7]
[403049804,1769099438670,-450.0,0.00023014,2]
[403049805,1769099438680,-478.75725327,0.00023275,2]
[403049806,1769099438689,-578.20924308,0.00023275,2]
[403049807,1769099438699,-2000.0,0.000235,7]
[403049808,1769099438708,-289.07618867,0.00023562,2]
[403049809,1769099438717,-496.47127164,0.00023823,2]
[403049810,1769099438726,-599.60298507,0.00023823,2]
[403049811,1769099438735,-11799.72939376,0.00023861,2]
[403049812,1769099438744,-2000.0,0.00024,7]
[403049813,1769099438754,-2000.0,0.00024,2]
[403049814,1769099438763,-75427.41510285,0.00024,7]
[403049815,1769099438772,-813.19,0.00024,14]
[403049816,1769099438781,-288407.71449002,0.00024,7]
[403049817,1769099438792,-1021.0,0.00024,2]
[403049818,1769099438801,-512189.81234674,0.00024142,2]
[403049819,1769099438813,-287.904,0.00024142,2]
[403049820,1769099438823,-151.0,0.00024142,2]
[403049821,1769099438832,-151.0,0.00024142,2]
[403049822,1769099438843,-157.40537128,0.00024219,30]
[403049823,1769099438852,-708.628,0.0002434,2]
[403049824,1769099438861,-417.0,0.0002434,2]
[403049825,1769099438871,-178.0,0.0002434,2]
[403049826,1769099438880,-514.84070869,0.00024371,2]
[403049827,1769099438890,-621.78829552,0.00024371,2]
[403049828,1769099438899,-293.16786299,0.00024381,2]
[403049829,1769099438908,-1796.76,0.000244,14]
[403049830,1769099438918,-1126.0,0.000245,5]
[403049831,1769099438928,-200.0,0.000245,120]
[403049832,1769099438938,-2000.0,0.000245,7]
[403049833,1769099438948,-157.40537128,0.00024548,30]
[403049834,1769099438962,-185.52074634,0.00024626,2]
[403049835,1769099438972,-309.209,0.00024648,30]
[403049836,1769099438982,-309.209,0.00024648,30]
[403049837,1769099438992,-156908.71401508,0.0002465,2]
[403049838,1769099439002,-514.53397614,0.0002465,2]
[403049839,1769099439012,-200.0,0.00024658,2]
[403049840,1769099439022,-380.0,0.00024658,2]
[403049841,1769099439032,-500.0,0.00024658,2]
[403049842,1769099439043,-189.565,0.00024735,8]
[403049843,1769099439053,-500.0,0.00024795,2]
[403049844,1769099439063,-244.37,0.00024849,2]
[403049845,1769099439074,-157.40537128,0.00024877,30]
[403049846,1769099439084,-500.0,0.000249,9]
[403049847,1769099439094,-544.34915145,0.000249,2]
[403049848,1769099439104,-979.82847261,0.000249,2]
[403049849,1769099439114,-859.2,0.000249,7]
[403049850,1769099439125,-644.87393398,0.000249,2]
[403049851,1769099439134,-1160.77308117,0.000249,2]
[403049852,1769099439144,-1741.91728464,0.000249,2]
[403049853,1769099439154,-2063.59658875,0.000249,2]
[403049854,1769099439164,-165.9207497,0.000249,2]
[403049855,1769099439175,-298.65734947,0.000249,2]
[403049856,1769099439184,-530.94639905,0.000249,2]
[403049857,1769099439194,-618346.488536,0.000249,2]
[403049858,1769099439204,-500.0,0.000249,9]
[403049859,1769099439213,-151.0,0.000249,7]
[403049860,1769099439223,-151.0,0.000249,7]
[403049861,1769099439233,-492.58282989,0.00024919,2]
[403049862,1769099439243,-785.41503091,0.00024919,2]
[403049863,1769099439252,-500.0,0.00024932,2]
[403049864,1769099439262,-510.45,0.00024999,2]
[403049865,1769099439271,-2000.0,0.00025,2]
[403049866,1769099439281,-293.4384831,0.00025,30]
[403049867,1769099439291,-61841.09872675,0.00025,15]
[403049868,1769099439304,-161845.99765815,0.00025,15]
[403049877,1769099440163,-35642.4,0.00025,15]
[403049902,1769099443015,-361.0,0.0001658,2]
[403049903,1769099443027,-139.0,0.0001658,2]
[403049904,1769099443037,-235.328232,0.00016581,2]
[403049905,1769099443049,-151.0,0.00024142,2]
[403049906,1769099443058,-297.671768,0.00025,15]
[403049907,1769099443197,-151.0,0.000249,7]
[403049908,1769099443207,-1738.99624944,0.00025,15]
[403049964,1769099445982,-500.0,0.00025,15]
[403049977,1769099446095,-41574.2419693,0.00025,15]
[403049979,1769099446105,-1086.65318681,0.00025,2]
[403049980,1769099446114,-2999.999999,0.00025,2]
[403049982,1769099446124,-2677.52232539,0.00025,2]
[403049983,1769099446133,-10364.0,0.00025,2]
[403049985,1769099446143,-150.0,0.00025,2]
[403049986,1769099446151,-500.0,0.00025,2]
[403049988,1769099446168,-2839.7825195,0.00025,8]
[403049992,1769099502213,155.0,0.00013911,2]
[403049993,1769099987041,155.0,0.00013911,2]
[403050289,1769100638065,-300.0,0.00016377,2]
[403050291,1769100638075,-658.0,0.00016377,2]
[403050293,1769100638085,-1013.51095744,0.00016378,2]
[403050295,1769100638096,-3848.21229304,0.00016378,2]
[403050298,1769100638119,-100220.46028434,0.00016378,2]
[403050300,1769100638128,-8849.79704532,0.000164,2]
[403050302,1769100638137,-195.95820242,0.00016438,2]
[403050304,1769100638147,-500.0,0.00016476,2]
[403050307,1769100638157,-500.0,0.00016476,2]
[403050309,1769100638166,-500.0,0.00016476,2]
[403050310,1769100638175,-500.0,0.00016476,2]
[403050312,1769100638185,-500.0,0.00016476,2]
[403050315,1769100638198,-385.71663165,0.00016476,2]
[403050316,1769100638208,-500.0,0.00016476,2]
[403050318,1769100638217,-500.0,0.00016476,2]
[403050320,1769100638228,-500.0,0.00016476,2]
[403050321,1769100638239,-500.0,0.00016476,2]
[403050322,1769100638248,-500.0,0.00016476,2]
[403050323,1769100638258,-498.96405791,0.00016476,2]
[403050324,1769100638269,-500.0,0.00016476,2]
[403050325,1769100638279,-400.93378366,0.00016476,2]
[403050326,1769100638288,-251.99883244,0.00016476,2]
[403050327,1769100638298,-500.0,0.00016476,2]
[403050328,1769100638307,-500.0,0.00016476,2]
[403050329,1769100638316,-500.0,0.00016476,2]
[403050330,1769100638325,-500.0,0.00016476,2]
[403050332,1769100638335,-500.0,0.00016476,2]
[403050333,1769100638344,-500.0,0.00016476,2]
[403050335,1769100638355,-500.0,0.00016476,2]
[403050336,1769100638364,-271.93051054,0.00016476,2]
[403050337,1769100638374,-500.0,0.00016476,2]
[403050338,1769100638383,-500.0,0.00016476,2]
[403050339,1769100638392,-500.0,0.00016476,2]
[403050340,1769100638402,-500.0,0.00016476,2]
[403050341,1769100638412,-500.0,0.00016476,2]
[403050342,1769100638421,-367.02168444,0.00016476,2]
[403050343,1769100638431,-500.0,0.00016476,2]
[403050344,1769100638440,-500.0,0.00016476,2]
[403050345,1769100638450,-500.0,0.00016476,2]
[403050346,1769100638459,-500.0,0.00016476,2]
[403050347,1769100638469,-500.0,0.00016476,2]
[403050348,1769100638479,-500.0,0.00016476,2]
[403050349,1769100638489,-500.0,0.00016476,2]
[403050350,1769100638498,-500.0,0.00016476,2]
[403050351,1769100638508,-500.0,0.00016476,2]
[403050352,1769100638517,-500.0,0.00016476,2]
[403050353,1769100638527,-500.0,0.00016476,2]
[403050354,1769100638537,-205.90039896,0.00016476,2]
[403050355,1769100638546,-500.0,0.00016476,2]
[403050356,1769100638556,-500.0,0.00016476,2]
[403050357,1769100638565,-500.0,0.00016476,2]
[403050358,1769100638575,-500.0,0.00016476,2]
[403050359,1769100638584,-500.0,0.00016476,2]
[403050360,1769100638595,-345.51199938,0.00016476,2]
[403050361,1769100638605,-262.96522026,0.00016481,2]
[403050362,1769100638614,-151.0,0.000165,2]
[403050363,1769100638623,-151.0,0.000165,2]
[403050364,1769100638632,-151.0,0.000165,2]
[403050365,1769100638642,-151.0,0.000165,2]
[403050366,1769100638651,-151.0,0.000165,2]
[403050367,1769100638661,-151.0,0.000165,2]
[403050368,1769100638670,-151.0,0.000165,2]
[403050369,1769100638679,-151.0,0.000165,2]
[403050370,1769100638689,-180.0,0.00017744,2]
[403050371,1769100638698,-150.0,0.00017744,2]
[403050372,1769100638707,-500.0,0.00017744,2]
[403050373,1769100638716,-500.0,0.00017744,2]
[403050374,1769100638725,-500.0,0.00017744,2]
[403050375,1769100638734,-500.0,0.00017744,2]
[403050376,1769100638743,-500.0,0.00017881,2]
[403050377,1769100638752,-500.0,0.00017881,2]
[403050378,1769100638762,-512.56673437,0.00017881,2]
[403050379,1769100638771,-500.0,0.00017881,2]
[403050380,1769100638779,-420.0,0.00017898,2]
[403050381,1769100638789,-500.0,0.00018018,2]
[403050382,1769100638798,-500.0,0.00018018,2]
[403050383,1769100638807,-500.0,0.00018018,2]
[403050384,1769100638817,-500.0,0.00018155,2]
[403050385,1769100638827,-462.76843359,0.00018155,2]
[403050386,1769100638837,-600.0,0.00018155,2]
[403050387,1769100638847,-8849.79704532,0.00018255,2]
[403050388,1769100638856,-231.23067885,0.00018438,2]
[403050389,1769100638866,-16645.4282061,0.00018745,2]
[403050390,1769100638876,-3908.76,0.00019178,2]
[403050391,1769100638887,-1617.08,0.000196,2]
[403050392,1769100638896,-175.58904552,0.000201,2]
[403050393,1769100638906,-8849.79704532,0.0002011,2]
[403050394,1769100638915,-175.58904552,0.000203,2]
[403050395,1769100638924,-10000.0,0.00020434,7]
[403050396,1769100638933,-10000.0,0.00020434,7]
[403050397,1769100638942,-10000.0,0.00020434,7]
[403050398,1769100638951,-10000.0,0.00020434,7]
[403050399,1769100638961,-10000.0,0.00020434,7]
[403050400,1769100638971,-10000.0,0.00020434,7]
[403050401,1769100638981,-6329.0,0.00020434,7]
[403050402,1769100638991,-266.50315528,0.00020438,2]
[403050403,1769100639001,-969.5,0.00020658,10]
[403050404,1769100639010,-161.0,0.00020877,3]
[403050405,1769100639020,-184.31641531,0.00021866,2]
[403050406,1769100639029,-150.0,0.00021918,2]
[403050407,1769100639038,-1368.0,0.00021951,2]
[403050408,1769100639047,-8849.79704532,0.00021965,2]
[403050409,1769100639056,-167.0,0.00022,2]
[403050410,1769100639065,-369.0,0.00022,2]
[403050411,1769100639075,-1023.78521775,0.00022,2]
[403050412,1769100639084,-369.0,0.00022192,7]
[403050413,1769100639093,-168.38,0.00022203,2]
[403050414,1769100639103,-301.77563172,0.00022438,2]
[403050415,1769100639112,-3908.76,0.00022465,4]
[403050416,1769100639121,-369.0,0.00022466,7]
[403050417,1769100639130,-300.0,0.00022466,2]
[403050418,1769100639141,-1556.1,0.000225,2]
[403050419,1769100639150,-859.2,0.000225,7]
[403050420,1769100639159,-369.0,0.0002274,7]
[403050421,1769100639169,-557.5788265,0.00022751,2]
[403050422,1769100639180,-461.67526834,0.00022751,2]
[403050423,1769100639190,-1021.0,0.00023,2]
[403050424,1769100639203,-369.0,0.00023014,7]
[403050425,1769100639212,-450.0,0.00023014,2]
[403050426,1769100639221,-369.0,0.00023014,7]
[403050427,1769100639231,-578.20924308,0.00023299,2]
[403050428,1769100639242,-478.75725327,0.00023299,2]
[403050429,1769100639251,-289.07618867,0.00023562,2]
[403050430,1769100639261,-8849.79704532,0.00023819,2]
[403050431,1769100639271,-599.60298507,0.00023847,2]
[403050432,1769100639280,-496.47127164,0.00023847,2]
[403050433,1769100639290,-1041.66666667,0.00024,7]
[403050434,1769100639299,-1021.0,0.00024,2]
[403050435,1769100639308,-370.0,0.00024164,7]
[403050436,1769100639318,-369.0,0.00024164,7]
[403050437,1769100639327,-336.75,0.00024221,2]
[403050438,1769100639336,-632.15641737,0.00024368,2]
[403050439,1769100639347,-621.78829552,0.00024395,2]
[403050440,1769100639357,-514.84070869,0.00024395,2]
[403050441,1769100639367,-337.04810815,0.00024438,2]
[403050442,1769100639377,-157.40537128,0.00024548,30]
[403050443,1769100639387,-309.209,0.00024648,30]
[403050444,1769100639397,-309.209,0.00024648,30]
[403050445,1769100639407,-500.0,0.00024658,2]
[403050446,1769100639653,-189.565,0.00024666,7]
[403050447,1769100639663,-1041.66666667,0.00024718,2]
[403050448,1769100639672,-500.0,0.00024795,2]
[403050449,1769100639682,-157.40537128,0.00024877,30]
[403050450,1769100639690,-15787.4517246,0.00024888,2]
[403050451,1769100639699,-458.9808647,0.00024888,2]
[403050452,1769100639709,-500.0,0.000249,9]
[403050453,1769100639719,-618346.488536,0.000249,2]
[403050454,1769100639727,-6807.39,0.000249,2]
[403050455,1769100639736,-500.0,0.00024932,2]
[403050457,1769100639745,-785.41503091,0.00024943,2]
[403050459,1769100639755,-492.58282989,0.00024943,2]
[403050461,1769100639763,-708.628,0.00024951,2]
[403050463,1769100639773,-500.0,0.00024954,9]
[403050467,1769100639793,-96454.69020463,0.00025,8]
[403050469,1769100639803,-160.0,0.00025,30]
[403050471,1769100639812,-776.8445567,0.00025,30]
[403050473,1769100639822,-150.15,0.00025,7]
[403050475,1769100639832,-2721.74575725,0.00025,2]
[403050476,1769100639842,-3224.36966991,0.00025,2]
[403050478,1769100639852,-626.56447253,0.00025,2]
[403050480,1769100639861,-1127.81605055,0.00025,2]
[403050481,1769100639872,-2005.00631209,0.00025,2]
[403050482,1769100639882,-420.86589115,0.00025,2]
[403050483,1769100639892,-757.55860406,0.00025,2]
[403050485,1769100639902,-1346.77085167,0.00025,2]
[403050487,1769100639911,-166.0,0.00025,3]
[403050488,1769100639921,-153.0,0.00025,3]
[403050489,1769100639930,-166.0,0.00025,3]
[403050490,1769100639939,-153.0,0.00025,3]
[403050491,1769100639948,-166.0,0.00025,3]
[403050492,1769100639958,-153.0,0.00025,3]
[403050493,1769100639968,-166.0,0.00025,3]
[403050494,1769100639977,-153.0,0.00025,3]
[403050495,1769100639986,-166.0,0.00025,3]
[403050496,1769100639996,-153.0,0.00025,3]
[403050497,1769100640005,-166.0,0.00025,3]
[403050498,1769100640015,-153.0,0.00025,3]
[403050499,1769100640024,-166.0,0.00025,3]
[403050500,1769100640033,-153.0,0.00025,3]
[403050501,1769100640043,-166.0,0.00025,3]
[403050502,1769100640052,-153.0,0.00025,3]
[403050503,1769100640062,-153.0,0.00025,3]
[403050504,1769100640071,-172.0,0.00025,3]
[403050505,1769100640080,-293.4384831,0.00025,30]
[403050506,1769100640090,-1021.0,0.00025,2]
[403050507,1769100640099,-500.0,0.00025069,2]
[403050508,1769100640109,-369.0,0.00025131,7]
[403050509,1769100640118,-157.40537128,0.00025205,30]
[403050510,1769100640128,-157.40537128,0.00025205,30]
[403050511,1769100640137,-500.0,0.00025206,2]
[403050512,1769100640147,-369.0,0.00025315,7]
[403050513,1769100640156,-500.0,0.00025343,2]
[403050514,1769100640166,-151.0,0.00025411,2]
[403050515,1769100640175,-500.0,0.0002548,2]
[403050516,1769100640185,-122745.69774737,0.0002548,2]
[403050517,1769100640199,-1000.0,0.000255,2]
[403050518,1769100640209,-500.0,0.00025617,2]
[403050519,1769100640218,-8849.79704532,0.00025674,2]
[403050520,1769100640228,-1617.08,0.000257,14]
[403050521,1769100640239,-1556.1,0.000257,2]
[403050522,1769100640248,-859.2,0.000257,7]
[403050523,1769100640258,-3908.76,0.00025753,6]
[403050524,1769100640269,-391.334248,0.00025754,30]
[403050525,1769100640278,-500.0,0.00025754,2]
[403050526,1769100640287,-500.0,0.00025891,2]
[403050527,1769100640297,-167.714677,0.00025896,30]
[403050528,1769100640306,-779.0,0.000259,2]
[403050529,1769100640317,-2000.0,0.00026,2]
[403050530,1769100640326,-530.3120382,0.00026,2]
[403050531,1769100640336,-19900.0,0.00026,2]
[403050532,1769100640345,-1021.0,0.00026,2]
[403050533,1769100640354,-26387.731589,0.00026,30]
[403050534,1769100640364,-1041.66666667,0.00026,30]
[403050535,1769100640374,-6807.39,0.00026,2]
[403050536,1769100640383,-151.0,0.00026006,2]
[403050537,1769100640393,-500.0,0.00026028,2]
[403050538,1769100640403,-369.0,0.00026098,7]
[403050539,1769100640413,-194.8142484,0.0002616,2]
[403050540,1769100640423,-500.0,0.00026165,2]
[403050541,1769100640433,-505.13,0.00026239,2]
[403050542,1769100640442,-500.0,0.00026302,2]
[403050543,1769100640452,-185.52074634,0.00026304,5]
[403050544,1769100640463,-921.476342,0.00026304,30]
[403050545,1769100640472,-2520.10163364,0.00026381,2]
[403050546,1769100640482,-372.32058459,0.00026438,2]
[403050547,1769100640492,-500.0,0.00026439,2]
[403050548,1769100640501,-1600.018011,0.00026439,30]
[403050549,1769100640511,-369.0,0.00026466,7]
[403050550,1769100640520,-608.77398676,0.00026498,2]
[403050551,1769100640530,-297.385546,0.00026527,30]
[403050552,1769100640539,-3021.185841,0.00026575,30]
[403050553,1769100640549,-5947.710929,0.00026575,30]
[403050554,1769100640558,-500.0,0.00026576,2]
[403050555,1769100640568,-151.0,0.00026602,5]
[403050556,1769100640578,-2000.0,0.00026643,7]
[403050557,1769100640587,-305.3567919,0.00026699,2]
[403050558,1769100640597,-240.8365643,0.00026699,2]
[403050559,1769100640607,-373.8968456,0.00026699,2]
[403050560,1769100640616,-613.731134,0.00026699,2]
[403050561,1769100640626,-293.3183593,0.00026699,2]
[403050562,1769100640636,-305.3567919,0.00026699,2]
[403050563,1769100640645,-194.4916584,0.00026699,2]
[403050564,1769100640654,-153.0,0.00026699,2]
[403050565,1769100640664,-153.0,0.00026699,2]
[403050566,1769100640674,-194.4916584,0.00026699,2]
[403050567,1769100640685,-305.3567919,0.00026699,2]
[403050568,1769100640694,-153.0,0.00026699,2]
[403050569,1769100640704,-305.3567919,0.00026699,2]
[403050570,1769100640713,-153.0,0.00026699,2]
[403050571,1769100640722,-305.3567919,0.00026699,2]
[403050572,1769100640732,-304.2988369,0.00026699,2]
[403050573,1769100640742,-500.0,0.00026713,2]
[403050574,1769100640751,-343.0,0.00026715,2]
[403050575,1769100640760,-1063.349574,0.0002678,5]
[403050576,1769100640770,-200.0,0.000268,22]
[403050577,1769100640780,-1000.0,0.000268,5]
[403050578,1769100640789,-2000.0,0.00026811,7]
[403050579,1769100640799,-500.0,0.0002685,2]
[403050580,1769100640808,-169.13166299,0.00026933,30]
[403050581,1769100640818,-800.0,0.00026974,2]
[403050582,1769100640828,-2000.0,0.00026978,7]
[403050583,1769100640837,-800.0,0.00026982,2]
[403050584,1769100640847,-500.0,0.00026987,2]
[403050585,1769100640857,-800.0,0.00026989,2]
[403050586,1769100640866,-232.01514,0.00027,120]
[403050587,1769100640876,-202.25896,0.00027,120]
[403050588,1769100640885,-2000.0,0.00027,2]
[403050589,1769100640895,-774.88100171,0.00027,120]
[403050590,1769100640904,-187778.0582569,0.00027,2]
[403050591,1769100640913,-510.45,0.00027,7]
[403050592,1769100640923,-2118.67726731,0.00027,7]
[403050593,1769100640933,-1788.41183041,0.00027,7]
[403050594,1769100640943,-298.48561379,0.00027,7]
[403050595,1769100640952,-294.664925,0.00027,7]
[403050596,1769100640961,-151.0,0.00027,7]
[403050597,1769100640971,-151.0,0.00027,7]
[403050598,1769100640980,-151.0,0.00027,7]
[403050599,1769100640989,-271.250949,0.00027,7]
[403050600,1769100640999,-1021.0,0.00027,2]
[403050601,1769100641008,-6807.39,0.00027,2]
[403050602,1769100641017,-800.0,0.00027001,2]
[403050603,1769100641027,-800.0,0.00027005,2]
[403050604,1769100641036,-411.0,0.00027014,2]
[403050605,1769100641045,-800.0,0.0002702,2]
[403050606,1769100641055,-800.0,0.00027026,2]
[403050607,1769100641064,-800.0,0.00027037,2]
[403050608,1769100641073,-800.0,0.00027041,2]
[403050609,1769100641083,-800.0,0.00027042,2]
[403050610,1769100641092,-800.0,0.00027056,2]
[403050611,1769100641101,-369.0,0.00027064,7]
[403050612,1769100641110,-358.26847297,0.00027077,2]
[403050613,1769100641120,-800.0,0.00027107,2]
[403050614,1769100641129,-800.0,0.00027109,2]
[403050615,1769100641138,-800.0,0.00027111,2]
[403050616,1769100641147,-392.77306658,0.00027124,2]
[403050617,1769100641157,-800.0,0.00027127,2]
[403050618,1769100641167,-2000.0,0.00027146,7]
[403050619,1769100641176,-800.0,0.0002717,2]
[403050620,1769100641186,-800.0,0.00027173,2]
[403050621,1769100641200,-800.0,0.0002719,2]
[403050622,1769100641210,-892.156639,0.00027191,30]
[403050623,1769100641220,-315876.21475521,0.00027197,2]
[403050624,1769100641229,-460.738172,0.00027197,30]
[403050625,1769100641240,-151.0,0.00027197,5]
[403050626,1769100641250,-1617.08,0.000272,14]
[403050627,1769100641259,-1556.1,0.000272,2]
[403050628,1769100641272,-859.2,0.000272,7]
[403050629,1769100641282,-800.0,0.00027241,2]
[403050630,1769100641292,-1708.47439256,0.00027279,10]
[403050631,1769100641301,-5000.0,0.00027279,10]
[403050632,1769100641311,-5000.0,0.00027279,13]
[403050633,1769100641323,-2973.855464,0.00027309,30]
[403050634,1769100641333,-2000.0,0.00027314,7]
[403050635,1769100641344,-5666.16200734,0.00027329,10]
[403050636,1769100641354,-5000.0,0.00027329,13]
[403050637,1769100641365,-169.13166299,0.00027369,30]
[403050638,1769100641375,-309.1673,0.00027387,60]
[403050639,1769100641385,-309.1673,0.00027387,60]
[403050640,1769100641395,-150.0,0.0002739,2]
[403050641,1769100641405,-394.68294424,0.0002739,7]
[403050642,1769100641415,-20130.92223536,0.0002739,2]
[403050643,1769100641426,-151.0,0.0002739,7]
[403050644,1769100641435,-151.0,0.0002739,7]
[403050645,1769100641445,-151.0,0.0002739,7]
[403050646,1769100641455,-500.0,0.00027397,10]
[403050647,1769100641465,-500.0,0.00027397,10]
[403050648,1769100641475,-500.0,0.00027397,10]
[403050649,1769100641486,-500.0,0.00027397,10]
[403050650,1769100641496,-500.0,0.00027397,10]
[403050651,1769100641506,-500.0,0.00027397,10]
[403050652,1769100641515,-500.0,0.00027397,10]
[403050653,1769100641525,-500.0,0.00027397,10]
[403050654,1769100641534,-500.0,0.00027397,10]
[403050655,1769100641544,-500.0,0.00027397,10]
[403050656,1769100641553,-500.0,0.00027397,10]
[403050657,1769100641564,-500.0,0.00027397,10]
[403050658,1769100641573,-500.0,0.00027397,10]
[403050659,1769100641583,-458.23963643,0.00027397,10]
[403050660,1769100641593,-601.49351898,0.00027397,2]
[403050661,1769100641603,-500.0,0.00027397,2]
[403050662,1769100641612,-500.0,0.00027397,2]
[403050663,1769100641622,-490.35616767,0.00027397,2]
[403050664,1769100641632,-16348.59,0.00027397,3]
[403050665,1769100641641,-16348.59,0.00027397,3]
[403050666,1769100641650,-16348.59,0.00027397,3]
[403050667,1769100641659,-16348.59,0.00027397,3]
[403050668,1769100641668,-16348.59,0.00027397,3]
[403050669,1769100641678,-16348.59,0.00027397,3]
[403050670,1769100641688,-16348.59,0.00027397,3]
[403050671,1769100641697,-16348.59,0.00027397,3]
[403050672,1769100641707,-16348.59,0.00027397,3]
[403050673,1769100641717,-16348.59,0.00027397,3]
[403050674,1769100641726,-16348.59,0.00027397,3]
[403050675,1769100641737,-16348.59,0.00027397,3]
[403050676,1769100641747,-16348.59,0.00027397,3]
[403050677,1769100641756,-16348.59,0.00027397,3]
[403050678,1769100641765,-16348.59,0.00027397,3]
[403050679,1769100641775,-16348.59,0.00027397,3]
[403050680,1769100641784,-2027.58,0.00027397,21]
[403050681,1769100641795,-16348.59,0.00027397,3]
[403050682,1769100641804,-2027.58,0.00027397,21]
[403050683,1769100641814,-16348.59,0.00027397,3]
[403050684,1769100641824,-2027.58,0.00027397,21]
[403050685,1769100641837,-16348.59,0.00027397,3]
[403050686,1769100641847,-2027.58,0.00027397,21]
[403050687,1769100641857,-16348.59,0.00027397,3]
[403050688,1769100641866,-2027.58,0.00027397,21]
[403050689,1769100641875,-16348.59,0.00027397,3]
[403050690,1769100641885,-2027.58,0.00027397,21]
[403050691,1769100641894,-2027.58,0.00027397,21]
[403050692,1769100641903,-16348.59,0.00027397,3]
[403050693,1769100641912,-2027.58,0.00027397,21]
[403050694,1769100641921,-16348.59,0.00027397,3]
[403050695,1769100641930,-2027.58,0.00027397,21]
[403050696,1769100641940,-16348.6695691,0.00027397,3]
[403050697,1769100641950,-2027.58,0.00027397,21]
[403050698,1769100641959,-2027.58,0.00027397,21]